bitfinex/quotes_SOLUSD_20250912
["timestamp","ask_amount","ask_price","bid_price","bid_amount"]
[1757650701877,0.78,234.73,234.72,38.21039536]
[1757650702866,0.78,234.73,234.72,33.95]
[1757650703063,0.78,234.73,234.72,0.03]
[1757650703299,0.78,234.73,234.72,33.95]
[1757650703872,0.78,234.73,234.72,33.93]
[1757650714886,0.78,234.73,234.72,0.03]
[1757650715203,0.78,234.73,234.72,33.91]
[1757650726211,0.06,234.73,234.72,33.91]
[1757650726406,0.06,234.73,234.72,34.4]
[1757650726909,0.06,234.73,234.72,33.91]
[1757650727299,0.06,234.73,234.72,38.66039536]
[1757650729607,0.06,234.73,234.72,38.17039536]
[1757650731601,0.06,234.73,234.72,38.66039536]
[1757650732202,0.06,234.73,234.72,6.48415428]
[1757650732503,0.06,234.73,234.72,39.81415428]
[1757650736016,0.06,234.73,234.72,5.99415428]
[1757650736314,0.06,234.73,234.72,39.81415428]
[1757650738907,0.06,234.73,234.72,5.99415428]
[1757650739112,0.06,234.73,234.72,39.79415428]
[1757650739514,0.06,234.73,234.72,35.53375892]
[1757650739814,0.75,234.73,234.72,39.79415428]
[1757650740320,0.06,234.73,234.72,39.79415428]
[1757650741014,0.06,234.73,234.72,40.28415428]
[1757650741398,0.06,234.73,234.72,39.79415428]
[1757650742405,0.06,234.73,234.72,53.87974829]
[1757650743601,0.06,234.73,234.72,54.02190986]
[1757650748698,0.06,234.73,234.72,53.53190986]
[1757650751608,0.16,234.79,234.72,53.53190986]
[1757650751609,0.1,234.89,234.81,20.0]
[1757650751828,0.1,234.89,234.88,39.73775558]
[1757650751829,1e-08,234.89,234.88,39.73775558]
[1757650752011,1e-08,234.89,234.88,80.06780348]
[1757650752207,1e-08,234.89,234.88,87.67807534]
[1757650752537,1e-08,234.89,234.88,104.90594059]
[1757650752715,1e-08,234.89,234.88,70.72019128]
[1757650752912,1e-08,234.89,234.88,71.14594059]
[1757650753523,1e-08,234.89,234.88,113.12338917]
[1757650753733,0.1,234.97,234.94,39.59559401]
[1757650753930,0.1,234.97,234.96,13.73775558]
[1757650754308,0.1,234.97,234.96,49.76775558]
[1757650754505,0.1,234.97,234.96,54.02379916]
[1757650754708,0.1,234.97,234.96,53.75379916]
[1757650755028,0.1,234.97,234.96,54.00379916]
[1757650755208,0.1,234.97,234.96,53.73379916]
[1757650755531,0.79,234.97,234.96,49.33559401]
[1757650755842,0.79,234.97,234.96,2.0]
[1757650756030,0.79,234.97,234.92,13.59559401]
[1757650756208,0.69,234.96,234.94,2.0]
[1757650756410,0.69,234.95,234.89,13.59559401]
[1757650756608,0.69,234.94,234.91,4.25573034]
[1757650756828,4.35589634,234.97,234.95,26.0]
[1757650757125,0.1,234.97,234.96,33.74]
[1757650757333,0.79,234.97,234.96,33.74]
[1757650757836,0.29,234.97,234.96,33.74]
[1757650758612,0.29,234.97,234.91,4.25573034]
[1757650758613,0.29,234.97,234.94,26.0]
[1757650758945,0.1,234.99,234.95,33.74]
[1757650759833,0.69,234.98,234.95,33.74]
[1757650760004,0.69,234.97,234.95,33.74]
[1757650760202,0.69,234.96,234.95,33.74]
[1757650760868,0.1,234.99,234.95,33.74]
[1757650761008,0.79,234.99,234.98,26.0]
[1757650761210,0.79,234.99,234.98,59.74]
[1757650761947,0.79,234.99,234.98,72.42305965]
[1757650762626,0.79,234.99,234.98,38.68305965]
[1757650762832,0.79,234.99,234.98,72.42305965]
[1757650763612,0.1,235.09,235.01,0.14216157]
[1757650763812,0.1,235.09,235.08,39.59559401]
[1757650764026,0.1,235.09,235.08,73.55559401]
[1757650764235,0.1,235.09,235.08,43.84806523]
[1757650764533,0.1,235.09,235.08,77.80806523]
[1757650764747,0.77,235.09,235.08,33.96]
[1757650764947,0.14216157,235.08,235.03,33.96]
[1757650765147,1.94875263,235.06,235.04,4.25247322]
[1757650765449,1.94875263,235.06,235.02,33.96]
[1757650765450,0.67,235.05,235.02,33.96]
[1757650765748,0.67,235.04,235.02,33.96]
[1757650765933,6.20289677,235.07,235.02,33.96]
[1757650766139,0.67,235.03,234.99,1.94875263]
[1757650766359,4.25414414,235.07,235.03,26.0]
[1757650766933,0.67,235.06,235.03,26.0]
[1757650767255,0.67,235.05,235.03,26.0]
[1757650767461,0.67,235.04,235.03,26.0]
[1757650768757,0.67,235.07,235.03,26.0]
[1757650769050,0.77,235.09,235.04,34.04]
[1757650769418,0.67,235.08,235.05,4.25441395]
[1757650769618,0.67,235.07,235.06,34.04]
[1757650770247,0.1,235.09,235.06,34.04]
[1757650770553,0.67,235.08,235.06,34.04]
[1757650772348,0.67,235.08,235.07,33.98]
[1757650772551,0.67,235.08,235.03,38.76134164]
[1757650772752,0.67,235.08,235.07,26.0]
[1757650773842,4.9238893,235.08,235.06,33.98]
[1757650774040,4.9838893,235.08,235.06,33.98]
[1757650774340,0.73,235.08,235.06,33.98]
[1757650774534,0.73,235.08,235.05,33.98]
[1757650774939,0.06,235.08,235.05,33.98]
[1757650778258,4.31388684,235.08,235.05,33.98]
[1757650778463,4.31388684,235.08,235.01,30.35371054]
[1757650778657,4.31388684,235.08,235.02,33.92]
[1757650778859,0.06,235.08,235.02,33.92]
[1757650779760,0.06,235.08,235.03,33.92]
[1757650779963,0.06,235.08,235.06,26.0]
[1757650780169,0.06,235.08,235.07,33.9]
[1757650780543,0.06,235.08,235.05,1.70151222]
[1757650780741,0.06,235.08,235.01,26.0]
[1757650780742,0.06,235.08,235.03,33.92]
[1757650781070,4.31392798,235.08,235.03,33.92]
[1757650781448,0.06,235.08,235.03,33.92]
[1757650782465,4.31392559,235.08,235.03,33.92]
[1757650783163,14.94860314,235.08,235.03,33.92]
[1757650783463,14.94860314,235.08,235.03,33.9]
[1757650785357,16.89735577,235.08,234.97,10.63403758]
[1757650785560,16.89735577,235.08,234.98,33.88]
[1757650785759,1.94875263,235.06,234.98,33.88]
[1757650785942,2.0909142,235.07,234.98,33.88]
[1757650787273,14.88981536,235.06,234.98,33.88]
[1757650787842,0.14216157,235.01,234.96,0.03]
[1757650788149,0.14216157,235.01,234.96,23.93]
[1757650789557,14.89361701,235.0,234.96,0.03]
[1757650790571,4.25531914,235.0,234.96,0.03]
[1757650791665,2.83975423,235.04,234.97,26.0]
[1757650791868,4.25461625,235.04,234.98,33.82]
[1757650792058,7.0959181,235.04,234.98,33.82]
[1757650792256,2.84130185,235.03,234.98,33.82]
[1757650792775,3.03960648,235.01,234.96,0.03]
[1757650793078,2.84130185,235.03,234.97,33.96]
[1757650793247,2.84130185,235.02,234.96,0.03]
[1757650793447,2.84130185,235.01,234.96,33.99]
[1757650793674,4.25550023,234.99,234.96,33.99]
[1757650794353,2.84130185,234.98,234.96,0.03]
[1757650795377,4.25550023,234.99,234.96,0.03]
[1757650795555,2.85127753,234.98,234.96,0.03]
[1757650795757,14.89322843,235.01,234.96,33.97]
[1757650795956,2.85127779,235.0,234.96,33.97]
[1757650796154,2.85127779,234.99,234.96,0.03]
[1757650796359,2.85127779,234.98,234.96,0.03]
[1757650796548,2.85127779,234.97,234.96,0.03]
[1757650798167,7.10714024,234.97,234.96,0.03]
[1757650798360,4.25586245,234.97,234.96,0.03]
[1757650798760,7.10714024,234.97,234.96,0.03]
[1757650799084,4.25586245,234.97,234.96,0.03]
[1757650800558,7.25086279,234.97,234.96,0.03]
[1757650800761,7.10870122,234.97,234.96,0.03]
[1757650801254,4.25586245,234.97,234.96,0.03]
[1757650801763,7.10870122,234.97,234.96,0.03]
[1757650801965,4.25586245,234.97,234.96,0.03]
[1757650802161,10.29046927,234.97,234.96,0.03]
[1757650802667,13.45941099,234.97,234.96,0.03]
[1757650802864,10.41980451,234.97,234.96,0.03]
[1757650803064,13.45941099,234.97,234.96,0.03]
[1757650803681,30.60469779,234.97,234.96,0.03]
[1757650804186,24.01539852,234.97,234.96,0.03]
[1757650804363,27.055005,234.97,234.96,0.03]
[1757650805268,23.88606328,234.97,234.96,0.03]
[1757650805864,4.39802402,234.97,234.96,0.03]
[1757650811182,7.4376305,234.97,234.96,0.03]
[1757650812786,10.60038446,234.97,234.96,0.03]
[1757650812984,13.45322323,234.97,234.96,0.03]
[1757650813161,10.60038446,234.97,234.96,0.03]
[1757650813486,7.4376305,234.97,234.96,0.03]
[1757650814674,10.59947612,234.97,234.96,0.03]
[1757650815262,0.14216157,234.92,234.91,0.03]
[1757650815470,32.03460682,234.92,234.91,0.03]
[1757650815685,2.99500034,234.92,234.91,0.03]
[1757650815903,3.03960648,234.96,234.91,0.03]
[1757650816269,14.89551857,234.97,234.91,0.03]
[1757650816270,4.25586245,234.97,234.91,0.03]
[1757650817296,7.29546893,234.97,234.91,0.03]
[1757650817593,17.93512505,234.97,234.91,0.03]
[1757650817980,4.25586245,234.97,234.91,0.03]
[1757650818289,13.62618173,235.0,234.91,26.03]
[1757650818290,131.1,234.99,234.91,26.03]
[1757650818792,131.1,234.99,234.91,30.28687941]
[1757650819686,135.35550916,234.99,234.91,30.28687941]
[1757650820278,44.53674038,235.04,234.91,30.28687941]
[1757650820279,10.69674038,235.04,234.93,26.0]
[1757650820464,4.31470062,235.04,234.93,26.0]
[1757650820665,4.31470062,235.04,234.97,26.0]
[1757650820918,4.31470062,235.04,234.98,33.82]
[1757650820919,0.06,235.04,234.98,33.82]
[1757650821487,0.06,235.04,235.01,26.0]
[1757650822103,0.06,235.04,235.02,33.84]
[1757650823788,0.06,235.04,235.01,26.0]
[1757650823990,0.06,235.04,235.03,33.82]
[1757650824498,0.06,235.04,235.03,33.8]
[1757650827301,0.06,235.04,235.02,4.25492774]
[1757650827499,0.06,235.04,234.98,24.23449111]
[1757650827500,0.06,235.04,235.03,33.76]
[1757650827991,0.06,235.04,235.01,39.59559401]
[1757650828180,0.06,235.04,234.98,4.25553548]
[1757650828373,0.06,235.04,235.03,26.0]
[1757650828883,4.31462911,235.04,234.97,13.59559401]
[1757650829093,4.31462911,235.04,234.98,33.76]
[1757650829494,4.31462911,235.04,235.01,26.0]
[1757650829676,4.31462911,235.04,235.02,33.76]
[1757650830093,0.06,235.04,235.02,33.76]
[1757650834987,4.31471489,235.04,235.0,33.74]
[1757650835196,4.31471489,235.04,235.0,34.41]
[1757650835392,0.06,235.04,235.01,0.67]
[1757650835613,0.06,235.04,235.02,0.67]
[1757650836704,0.06,235.04,235.0,34.41]
[1757650836886,4.31465287,235.04,235.0,33.74]
[1757650837205,5.02465287,235.04,235.0,33.74]
[1757650837398,0.06,235.04,235.01,0.67]
[1757650837905,4.31466531,235.04,235.01,0.67]
[1757650838400,4.31466531,235.04,235.0,33.74]
[1757650838578,4.31466531,235.04,235.0,34.41]
[1757650838781,4.31466531,235.04,234.95,26.0]
[1757650838782,0.71,235.03,234.95,26.0]
[1757650838998,0.71,235.03,234.91,0.03]
[1757650838999,0.71,235.03,234.99,26.0]
[1757650839206,0.71,235.03,234.99,59.74]
[1757650839405,4.25495702,235.02,234.99,59.74]
[1757650839585,4.96495702,235.02,234.99,59.74]
[1757650840189,4.96495702,235.02,234.99,33.74]
[1757650840400,0.71,235.01,234.99,33.74]
[1757650840610,0.71,235.01,234.96,26.0]
[1757650840611,0.71,235.01,234.95,26.67]
[1757650840796,0.71,235.01,234.96,33.74]
[1757650841507,4.96530517,235.01,234.96,34.41]
[1757650841681,4.96530517,235.01,234.96,0.67]
[1757650841886,4.96530517,235.01,234.97,33.74]
[1757650842713,0.71,235.0,234.98,33.74]
[1757650842914,0.71,234.99,234.93,0.67]
[1757650843209,4.9647998,235.03,234.94,59.74]
[1757650843424,4.2547998,235.03,234.95,0.67]
[1757650844316,0.06,235.04,234.97,26.0]
[1757650844514,4.31463435,235.04,234.98,34.41]
[1757650845394,4.31463435,235.04,234.98,33.74]
[1757650845594,4.31463435,235.04,234.99,0.67]
[1757650845793,0.06,235.04,235.01,26.0]
[1757650845994,0.06,235.04,235.02,60.41]
[1757650846418,0.06,235.04,235.03,0.67]
[1757650847419,0.06,235.04,235.02,26.0]
[1757650847621,0.06,235.04,235.03,33.74]
[1757650848002,0.06,235.04,235.03,34.41]
[1757650850120,0.06,235.04,235.03,38.66477598]
[1757650851625,0.06,235.04,235.03,34.41]
[1757650852294,0.06,235.04,235.03,0.67]
[1757650852500,0.06,235.04,235.03,33.74]
[1757650852915,0.77,235.04,234.98,0.67]
[1757650853113,0.77,235.04,234.93,10.64133056]
[1757650853114,0.06,235.04,234.99,34.41]
[1757650853313,0.06,235.04,235.0,34.41]
[1757650853828,0.06,235.04,235.01,0.67]
[1757650854026,0.06,235.04,235.0,33.74]
[1757650854027,0.06,235.04,235.02,0.67]
[1757650854322,0.06,235.04,235.03,33.74]
[1757650856034,0.06,235.04,235.03,34.44]
[1757650859544,0.06,235.04,234.99,26.0]
[1757650859719,0.06,235.04,235.03,26.7]
[1757650859919,0.06,235.04,235.03,60.44]
[1757650860322,0.06,235.04,235.03,0.7]
[1757650860649,0.06,235.04,235.03,34.44]
[1757650863332,2.51087576,235.09,235.03,34.44]
[1757650864231,4.99351014,235.1,235.03,34.44]
[1757650864943,4.99351014,235.1,235.04,33.72]
[1757650866555,0.74,235.1,235.04,38.67458863]
[1757650866846,0.06,235.07,235.05,0.7]
[1757650867926,0.06,235.07,235.04,33.72]
[1757650868124,0.06,235.07,235.01,0.03]
[1757650868125,0.68,235.06,235.05,33.72]
[1757650868632,0.06,235.07,235.05,33.72]
[1757650868831,0.74,235.07,235.05,33.72]
[1757650869637,0.06,235.07,235.05,33.72]
[1757650870626,0.74,235.07,235.06,33.72]
[1757650871251,0.06,235.07,235.06,33.72]
[1757650873558,0.74,235.07,235.06,33.72]
[1757650874429,4.99405198,235.07,235.02,26.0]
[1757650874630,0.68,235.06,235.05,26.0]
[1757650874933,4.31405198,235.07,235.05,26.0]
[1757650875151,0.74,235.07,235.05,26.0]
[1757650875342,0.06,235.07,235.05,26.0]
[1757650875930,0.06,235.07,235.06,0.7]
[1757650876130,0.06,235.07,235.06,26.7]
[1757650877124,0.06,235.07,235.06,34.42]
[1757650877655,0.06,235.07,235.06,52.26982697]
[1757650881935,0.06,235.07,235.06,52.24982697]
[1757650882458,0.06,235.07,235.06,18.54982697]
[1757650882639,0.06,235.07,235.06,52.24982697]
[1757650884650,0.06,235.07,235.06,52.27982697]
[1757650884936,0.06,235.07,235.06,18.57982697]
[1757650885242,0.06,235.07,235.06,52.27982697]
[1757650886633,0.06,235.07,235.06,18.57982697]
[1757650886850,0.06,235.07,235.06,52.27982697]
[1757650889942,0.06,235.07,235.06,0.03]
[1757650890161,0.06,235.07,235.06,59.73]
[1757650891354,0.06,235.07,235.06,73.32559401]
[1757650891661,0.06,235.07,235.06,40.31559401]
[1757650891850,0.06,235.07,235.06,73.99559401]
[1757650892051,0.06,235.07,235.06,40.31559401]
[1757650892263,0.06,235.07,235.06,0.03]
[1757650892477,0.06,235.07,235.06,33.71]
[1757650892658,0.06,235.07,235.06,47.99559401]
[1757650893142,0.06,235.07,235.06,52.24982697]
[1757650894468,0.06,235.07,235.06,47.99559401]
[1757650894681,0.76,235.07,235.06,0.03]
[1757650894890,0.06,235.07,235.06,33.71]
[1757650895181,0.06,235.07,235.06,47.99559401]
[1757650900344,0.06,235.07,235.06,14.31559401]
[1757650900769,0.06,235.07,235.06,47.30559401]
[1757650901150,0.06,235.07,235.06,13.62559401]
[1757650901359,0.06,235.07,235.06,47.30559401]
[1757650902461,0.06,235.07,235.06,14.31559401]
[1757650902661,0.06,235.07,235.06,47.99559401]
[1757650903251,0.06,235.07,235.06,47.30559401]
[1757650904369,0.1,235.19,235.1,13.59559401]
[1757650904570,0.7,235.27,235.16,13.73775558]
[1757650904876,0.1,235.29,235.17,7.51674443]
[1757650905079,0.1,235.29,235.12,2.21798507]
[1757650905080,0.7,235.26,235.12,2.21798507]
[1757650905377,0.7,235.25,235.17,1.70013814]
[1757650905581,26.0,235.23,235.14,15.12]
[1757650905783,0.14216157,235.21,235.14,15.12]
[1757650906001,0.7,235.2,235.14,15.12]
[1757650906282,0.7,235.19,235.14,15.12]
[1757650906464,4.25137644,235.22,235.14,15.12]
[1757650906465,0.7,235.18,235.14,15.12]
[1757650906783,0.7,235.18,235.14,45.37276106]
[1757650907075,0.7,235.17,235.16,26.0]
[1757650907279,0.7,235.17,235.16,60.0]
[1757650911982,0.7,235.21,235.17,13.59559401]
[1757650912197,0.7,235.24,235.18,33.94]
[1757650912788,0.7,235.23,235.19,33.94]
[1757650912984,0.7,235.22,235.19,33.94]
[1757650913286,4.25025501,235.28,235.19,33.94]
[1757650913462,0.7,235.21,235.19,33.94]
[1757650914679,0.7,235.21,235.19,38.19184482]
[1757650915063,0.67,235.23,235.19,38.19184482]
[1757650915264,3.26816642,235.29,235.19,33.94]
[1757650915265,0.67,235.22,235.19,33.94]
[1757650915683,0.67,235.21,235.19,33.94]
[1757650916364,4.25031018,235.28,235.19,38.19182161]
[1757650916686,0.67,235.23,235.19,38.19182161]
[1757650916876,0.67,235.22,235.19,38.19182161]
[1757650917078,0.67,235.22,235.19,33.94]
[1757650917685,4.25031018,235.28,235.19,33.94]
[1757650917985,0.67,235.24,235.19,33.94]
[1757650918188,0.67,235.27,235.19,38.19185462]
[1757650918504,0.67,235.27,235.22,26.0]
[1757650918693,0.67,235.27,235.23,33.86]
[1757650918893,0.67,235.26,235.23,33.86]
[1757650921498,0.67,235.25,235.17,33.9]
[1757650921989,0.67,235.25,235.18,4.25206225]
[1757650922497,0.67,235.25,235.2,26.0]
[1757650922704,0.06,235.27,235.21,33.96]
[1757650922902,0.73,235.27,235.21,33.96]
[1757650924011,0.73,235.27,235.21,42.52133701]
[1757650924181,0.67,235.26,235.21,38.26992652]
[1757650924382,0.67,235.25,235.21,38.26992652]
[1757650924696,0.67,235.24,235.21,38.26992652]
[1757650925011,0.67,235.23,235.21,33.96]
[1757650925395,0.67,235.22,235.21,33.96]
[1757650925906,0.67,235.22,235.18,4.31047396]
[1757650926085,0.67,235.21,235.16,0.03]
[1757650926508,3.70289738,235.21,235.16,0.03]
[1757650928413,4.25170068,235.2,235.16,0.03]
[1757650928783,0.67,235.19,235.16,0.03]
[1757650928985,3.03289738,235.17,235.16,0.03]
[1757650929507,3.70289738,235.17,235.16,0.03]
[1757650930411,7.95514043,235.17,235.16,0.03]
[1757650931194,0.67,235.17,235.16,0.03]
[1757650932197,3.16752205,235.19,235.16,0.03]
[1757650932198,0.67,235.19,235.16,0.03]
[1757650932721,0.67,235.18,235.16,0.03]
[1757650933293,0.67,235.17,235.16,0.03]
[1757650934219,0.67,235.22,235.16,0.03]
[1757650934720,4.92141473,235.22,235.16,33.87]
[1757650934895,0.67,235.21,235.16,33.87]
[1757650935096,0.67,235.23,235.16,33.87]
[1757650936221,4.92124218,235.23,235.16,33.87]
[1757650938402,0.73,235.27,235.2,26.0]
[1757650938726,0.73,235.27,235.21,33.82]
[1757650939516,0.06,235.27,235.21,33.82]
[1757650939828,0.06,235.27,235.21,35.5202104]
[1757650940130,4.31045329,235.27,235.21,35.5202104]
[1757650940504,0.06,235.23,235.21,35.5202104]
[1757650941629,0.06,235.23,235.21,33.82]
[1757650941813,0.06,235.23,235.22,1.70013814]
[1757650942528,0.06,235.23,235.21,33.82]
[1757650942827,0.67,235.22,235.2,1.7002104]
[1757650943122,3.70289738,235.21,235.16,0.03]
[1757650943305,3.03289738,235.19,235.16,0.03]
[1757650943495,3.03289738,235.17,235.16,0.03]
[1757650943697,0.67,235.18,235.16,0.03]
[1757650943922,0.67,235.17,235.16,0.03]
[1757650944498,4.92224305,235.17,235.16,0.03]
[1757650946312,0.67,235.17,235.16,0.03]
[1757650947926,4.92224305,235.17,235.16,0.03]
[1757650948299,8.09302668,235.17,235.11,0.03]
[1757650948630,3.03289738,235.14,235.11,0.03]
[1757650949122,3.74289738,235.14,235.11,0.03]
[1757650949832,0.71,235.14,235.11,0.03]
[1757650950231,4.96278557,235.14,235.11,0.03]
[1757650953133,7.99568295,235.14,235.11,0.03]
[1757650953625,0.71,235.17,235.11,0.03]
[1757650953950,0.71,235.14,235.11,0.03]
[1757650955929,4.96278557,235.14,235.11,0.03]
[1757650958929,0.06,235.23,235.16,26.0]
[1757650959105,4.31117779,235.23,235.16,26.0]
[1757650959305,5.02117779,235.23,235.16,26.0]
[1757650959637,5.02117779,235.23,235.14,13.59559401]
[1757650959812,5.02117779,235.23,235.15,5.02117779]
[1757650960142,4.31117779,235.23,235.15,5.02117779]
[1757650960313,0.71,235.22,235.15,5.02117779]
[1757650960509,4.96138601,235.22,235.15,5.02117779]
[1757650961408,0.71,235.21,235.15,5.02117779]
[1757650961916,4.25138601,235.22,235.13,33.73]
[1757650962123,0.71,235.2,235.13,37.98138601]
[1757650962336,0.71,235.2,235.13,33.73]
[1757650962646,4.25188145,235.19,235.13,33.73]
[1757650963211,0.71,235.2,235.13,33.73]
[1757650963424,5.02128333,235.23,235.13,38.02294795]
[1757650963706,0.71,235.22,235.13,38.02294795]
[1757650964329,4.25151991,235.21,235.13,42.33423128]
[1757650964835,4.25151991,235.21,235.13,38.08128333]
[1757650965539,0.71,235.22,235.13,42.33413834]
[1757650966033,3.74289738,235.21,235.13,33.73]
[1757650966217,3.74289738,235.2,235.13,0.03]
[1757650966729,4.25188145,235.19,235.13,0.03]
[1757650967107,0.71,235.18,235.13,0.03]
[1757650967421,3.74289738,235.18,235.13,0.03]
[1757650968413,4.25224305,235.17,235.13,0.03]
[1757650968941,0.71,235.16,235.13,0.03]
[1757650969314,0.71,235.15,235.13,0.03]
[1757650970433,4.25261217,235.15,235.13,0.03]
[1757650970637,0.71,235.14,235.13,0.03]
[1757650971913,4.96278557,235.14,235.13,0.03]
[1757650980753,6.90611051,235.14,235.13,0.03]
[1757650981243,10.07608371,235.14,235.13,0.03]
[1757650983034,8.13275877,235.14,235.13,0.03]
[1757650983239,38.86278557,235.14,235.13,0.03]
[1757650983619,40.80611051,235.14,235.13,0.03]
[1757650983935,38.86278557,235.14,235.13,0.03]
[1757650984255,40.80611051,235.14,235.13,0.03]
[1757650984550,43.97588453,235.14,235.13,0.03]
[1757650984750,43.95588453,235.14,235.13,0.03]
[1757650984942,10.07588453,235.14,235.13,0.03]
[1757650985144,43.95588453,235.14,235.13,0.03]
[1757650985343,41.99255959,235.14,235.13,0.03]
[1757650985545,10.07588453,235.14,235.13,0.03]
[1757650986034,43.93588453,235.14,235.13,0.03]
[1757650986840,8.13255959,235.14,235.13,0.03]
[1757650987053,43.93588453,235.14,235.13,0.03]
[1757650987347,43.91588453,235.14,235.13,0.03]
[1757650988652,8.13255959,235.14,235.13,0.03]
[1757650988836,41.97255959,235.14,235.13,0.03]
[1757650989148,10.07588453,235.14,235.13,0.03]
[1757650989460,43.89588453,235.14,235.13,0.03]
[1757650989756,10.07588453,235.14,235.13,0.03]
[1757650990139,43.87588453,235.14,235.13,0.03]
[1757650991439,23.67147854,235.14,235.13,0.03]
[1757650991657,26.0,235.12,235.1,0.03]
[1757650991866,26.0,235.07,235.06,1e-08]
[1757650992042,69.20715094,235.07,235.06,1e-08]
[1757650992230,69.86715094,235.07,235.06,1e-08]
[1757650993047,36.02715094,235.07,235.06,1e-08]
[1757650993245,69.84715094,235.07,235.06,1e-08]
[1757650993439,36.02715094,235.07,235.06,1e-08]
[1757650993858,69.84715094,235.07,235.06,1e-08]
[1757650996858,36.02715094,235.07,235.06,1e-08]
[1757650997162,69.80715094,235.07,235.06,1e-08]
[1757650997382,83.40274495,235.07,235.06,1e-08]
[1757650997962,26.0,235.04,235.01,0.13]
[1757650998140,69.16769392,235.04,235.01,0.13]
[1757650998339,34.08436898,235.04,235.01,0.13]
[1757650998545,38.05459496,235.04,235.01,0.13]
[1757650998757,4.25459496,235.04,235.01,0.13]
[1757650999068,38.73459496,235.04,235.01,0.13]
[1757650999840,4.25459496,235.04,235.01,0.13]
[1757651000039,38.73459496,235.04,235.01,0.13]
[1757651000849,41.89798974,235.04,235.01,0.13]
[1757651001767,43.84131468,235.04,235.01,0.13]
[1757651001961,41.89798974,235.04,235.01,0.13]
[1757651002562,4.25459496,235.04,235.01,0.13]
[1757651002847,38.71459496,235.04,235.01,0.13]
[1757651003048,0.66,235.1,235.02,0.07]
[1757651003379,4.25369007,235.09,235.02,0.07]
[1757651003574,33.8,235.08,235.02,0.07]
[1757651003757,33.8,235.08,235.01,0.13]
[1757651003758,34.46,235.08,235.01,0.13]
[1757651003954,0.66,235.07,235.01,0.13]
[1757651004153,4.25342058,235.11,235.04,0.07]
[1757651004353,36.96153714,235.1,235.04,0.07]
[1757651004666,4.25369007,235.09,235.01,0.2]
[1757651005280,0.7,235.08,235.01,0.2]
[1757651005662,0.7,235.07,235.01,0.2]
[1757651005881,0.7,235.07,235.01,0.13]
[1757651006049,0.7,235.06,235.01,0.13]
[1757651006459,4.25459496,235.04,235.01,0.13]
[1757651007580,4.95459496,235.04,235.01,0.13]
[1757651009657,38.71459496,235.04,235.01,0.13]
[1757651010171,41.88076628,235.04,235.01,0.13]
[1757651015285,8.12076628,235.04,235.01,0.13]
[1757651015483,4.25423958,235.06,235.01,0.13]
[1757651015682,3.16865618,235.05,235.01,0.13]
[1757651016483,3.16865618,235.05,235.04,0.07]
[1757651016685,3.16884277,235.09,235.04,0.07]
[1757651016856,4.31352352,235.1,235.05,0.07]